fUST/lending_fUST_20250614
["ID","MTS","AMOUNT","RATE_DAILY","PERIOD"]
[365701817,1749834653167,-365.855373,0.0002387,7]
[365701818,1749834653176,-150.0,0.00023873,2]
[365701819,1749834653186,-161.95301122,0.00023892,76]
[365701820,1749834653196,-1171.77,0.000239,31]
[365701821,1749834653206,-1171.77,0.000239,31]
[365701822,1749834653216,-1171.77,0.000239,31]
[365701823,1749834653225,-1171.77,0.000239,31]
[365701824,1749834653235,-1171.77,0.000239,31]
[365701825,1749834653244,-1171.77,0.000239,31]
[365701826,1749834653254,-1171.77,0.000239,31]
[365701827,1749834653263,-1171.77,0.000239,31]
[365701828,1749834653273,-1171.77,0.000239,31]
[365701829,1749834653282,-1171.77,0.000239,31]
[365701830,1749834653293,-1171.77,0.000239,31]
[365701831,1749834653303,-1171.77,0.000239,31]
[365701832,1749834653312,-1171.77,0.000239,31]
[365701833,1749834653322,-1171.77,0.000239,31]
[365701834,1749834653332,-1171.77,0.000239,31]
[365701835,1749834653341,-1171.77,0.000239,31]
[365701836,1749834653350,-1578.126102,0.0002392,5]
[365701837,1749834653360,-1000.0,0.0002394,5]
[365701838,1749834653369,-164.154645,0.00023942,7]
[365701839,1749834653378,-192.134334,0.00023942,7]
[365701840,1749834653387,-192.134334,0.00023942,7]
[365701841,1749834653398,-151.0,0.00023942,7]
[365701842,1749834653407,-151.0,0.00023942,7]
[365701843,1749834653417,-151.0,0.00023942,7]
[365701844,1749834653428,-151.0,0.00023942,7]
[365701845,1749834653437,-6888.13748263,0.00023942,2]
[365701846,1749834653447,-742.14,0.00023944,2]
[365701847,1749834653457,-237.0,0.00023951,2]
[365701848,1749834653468,-1000.0,0.0002396,5]
[365701849,1749834653478,-452.1700868,0.00023961,2]
[365701850,1749834653488,-306.0,0.00023961,2]
[365701851,1749834653498,-439.84863068,0.00023969,10]
[365701852,1749834653508,-2500.0,0.0002397,2]
[365701853,1749834653518,-1000.0,0.0002398,5]
[365701854,1749834653528,-1537.0,0.00023987,2]
[365701855,1749834653538,-2581755.20188686,0.00024,3]
[365701856,1749834653548,-1000.0,0.00024,24]
[365701857,1749834653559,-2000.0,0.00024,2]
[365701858,1749834653569,-2000.0,0.00024,2]
[365701859,1749834653579,-2000.0,0.00024,2]
[365701860,1749834653589,-168.0,0.00024,7]
[365701861,1749834653599,-21505.71113454,0.00024,2]
[365701862,1749834653609,-135910.58659914,0.00024,35]
[365701863,1749834653620,-493.19616532,0.00024,60]
[365701864,1749834653629,-30013.0,0.00024,2]
[365701865,1749834653641,-500.0,0.00024,2]
[365701866,1749834653650,-500.0,0.00024,2]
[365701867,1749834653661,-500.0,0.00024,2]
[365701868,1749834653671,-500.0,0.00024,2]
[365701869,1749834653680,-500.0,0.00024,2]
[365701870,1749834653690,-500.0,0.00024,2]
[365701871,1749834653700,-595.97055251,0.00024,2]
[365701872,1749834653711,-8000.0,0.00024,30]
[365701873,1749834653721,-5000.0,0.00024,30]
[365701874,1749834653732,-8182.0,0.00024,30]
[365701875,1749834653742,-10010.03909984,0.00024,2]
[365701876,1749834653752,-200.0,0.00024,2]
[365701877,1749834653761,-200.0,0.00024,2]
[365701878,1749834653771,-2157.29111027,0.00024,10]
[365701879,1749834653862,-37487.6692881,0.00024,10]
[365701880,1749834655036,-84998.89730309,0.00024,10]
[365701881,1749834655281,-440.0,0.00021095,4]
[365701882,1749834655292,-460.0,0.00021095,4]
[365701883,1749834655301,-1000.0,0.000229,2]
[365701884,1749834655310,-405.0,0.00023426,2]
[365701885,1749834655320,-45897.68464462,0.00024,10]
[365701886,1749834655332,-316.28756471,0.00024,10]
[365701887,1749834655546,181.753084,0.00013699,2]
[365701888,1749834720890,2000.0,0.00020514,120]
[365701889,1749834751921,200.0,0.00023664,120]
[365701895,1749834830234,150.0,0.00024958,120]
[365701896,1749835171847,200.0,0.00023827,120]
[365701897,1749835231338,200.0,0.00024495,120]
[365701898,1749835255659,124860.306421,0.00024649,120]
[365701899,1749835351814,200.0,0.00024639,120]
[365701901,1749835538207,-1482.04655567,0.00020225,6]
[365701902,1749835538232,-163.828219,0.00020429,2]
[365701903,1749835538256,-500.0,0.00020964,2]
[365701904,1749835538279,-819.0,0.00020994,2]
[365701905,1749835538301,-199.32678703,0.00020995,2]
[365701906,1749835538323,-265.92970088,0.00021005,2]
[365701907,1749835538345,-300.0,0.00021093,2]
[365701908,1749835538370,-167.01,0.00021094,2]
[365701909,1749835538394,-300.0,0.00021094,2]
[365701910,1749835538416,-534.22081151,0.00021095,4]
[365701911,1749835538438,-440.0,0.00021095,4]
[365701912,1749835538460,-460.0,0.00021095,4]
[365701913,1749835538485,-460.0,0.00021095,4]
[365701914,1749835538508,-460.0,0.00021095,4]
[365701915,1749835538533,-251.36504178,0.00021095,4]
[365701916,1749835538559,-427.41408605,0.00021095,4]
[365701917,1749835538584,-420.0,0.00021095,4]
[365701918,1749835538608,-440.0,0.00021095,4]
[365701919,1749835538631,-460.0,0.00021095,4]
[365701920,1749835538656,-440.0,0.00021095,4]
[365701921,1749835538680,-460.0,0.00021095,4]
[365701922,1749835538704,-460.0,0.00021095,4]
[365701923,1749835538728,-320.0,0.00021095,4]
[365701924,1749835538751,-460.0,0.00021095,4]
[365701925,1749835538774,-460.0,0.00021095,4]
[365701926,1749835538796,-460.0,0.00021095,4]
[365701927,1749835538818,-440.0,0.00021095,4]
[365701928,1749835538842,-500.0,0.00021095,4]
[365701929,1749835538867,-460.0,0.00021095,4]
[365701930,1749835538892,-460.0,0.00021095,4]
[365701931,1749835538915,-460.0,0.00021095,4]
[365701932,1749835538937,-364.78863411,0.00021095,4]
[365701933,1749835538963,-430.0,0.00021095,4]
[365701934,1749835538986,-440.0,0.00021095,4]
[365701935,1749835539009,-440.0,0.00021095,4]
[365701936,1749835539032,-460.0,0.00021095,4]
[365701937,1749835539054,-430.0,0.00021095,4]
[365701938,1749835539078,-440.0,0.00021095,4]
[365701939,1749835539101,-371.38536333,0.00021095,4]
[365701940,1749835539125,-440.0,0.00021095,4]
[365701941,1749835539147,-440.0,0.00021095,4]
[365701942,1749835539169,-440.0,0.00021095,4]
[365701943,1749835539192,-430.0,0.00021095,4]
[365701944,1749835539216,-440.0,0.00021095,4]
[365701945,1749835539238,-440.0,0.00021095,4]
[365701946,1749835539270,-440.0,0.00021095,4]
[365701947,1749835539299,-440.0,0.00021095,4]
[365701948,1749835539323,-441.86730952,0.00021095,4]
[365701949,1749835539346,-433.9319657,0.00021095,4]
[365701950,1749835539370,-323.49565794,0.00021095,4]
[365701951,1749835539395,-440.0,0.00021095,4]
[365701952,1749835539418,-370.0,0.00021095,4]
[365701953,1749835539441,-302.13937357,0.00021095,4]
[365701954,1749835539464,-440.0,0.00021095,4]
[365701955,1749835539488,-550.98118995,0.00021095,4]
[365701956,1749835539510,-430.0,0.00021095,4]
[365701957,1749835539532,-404.08169942,0.00021095,4]
[365701958,1749835539554,-440.0,0.00021095,4]
[365701959,1749835539576,-430.0,0.00021095,4]
[365701960,1749835539598,-440.0,0.00021095,4]
[365701961,1749835539620,-430.98302439,0.00021095,4]
[365701962,1749835539642,-440.0,0.00021095,4]
[365701963,1749835539667,-978.09,0.00021095,4]
[365701964,1749835539691,-596.92,0.00021095,4]
[365701965,1749835539717,-440.0,0.00021095,4]
[365701966,1749835539741,-460.0,0.00021095,4]
[365701967,1749835539767,-901.29,0.00021095,4]
[365701968,1749835539791,-460.0,0.00021095,2]
[365701969,1749835539816,-460.0,0.00021095,4]
[365701970,1749835539840,-460.0,0.00021095,4]
[365701971,1749835539865,-460.0,0.00021095,4]
[365701972,1749835539888,-460.0,0.00021095,4]
[365701973,1749835539914,-1131.11,0.00021095,4]
[365701974,1749835539937,-1208.04,0.00021095,4]
[365701975,1749835539966,-460.0,0.00021095,4]
[365701976,1749835539992,-1534.12,0.00021095,4]
[365701977,1749835540015,-460.0,0.00021095,4]
[365701978,1749835540039,-460.0,0.00021095,4]
[365701979,1749835540063,-460.0,0.00021095,4]
[365701980,1749835540087,-629.59,0.00021095,4]
[365701981,1749835540109,-440.0,0.00021095,4]
[365701982,1749835540131,-460.0,0.00021095,4]
[365701983,1749835540154,-460.0,0.00021095,4]
[365701984,1749835540176,-400.0,0.00021095,4]
[365701985,1749835540200,-729.7,0.00021095,4]
[365701986,1749835540224,-460.0,0.00021095,4]
[365701987,1749835540248,-327.90953021,0.00021095,4]
[365701988,1749835540271,-460.0,0.00021095,4]
[365701989,1749835540296,-460.0,0.00021095,4]
[365701990,1749835540319,-460.0,0.00021095,4]
[365701991,1749835540343,-982.96,0.00021095,4]
[365701992,1749835540366,-580.0,0.00021095,4]
[365701993,1749835540394,-460.0,0.00021095,4]
[365701994,1749835540417,-460.0,0.00021095,4]
[365701995,1749835540440,-460.0,0.00021095,4]
[365701996,1749835540463,-460.0,0.00021095,4]
[365701997,1749835540487,-330.0,0.00021095,4]
[365701998,1749835540510,-460.0,0.00021095,4]
[365701999,1749835540534,-440.0,0.00021095,4]
[365702000,1749835540557,-440.0,0.00021095,4]
[365702001,1749835540580,-460.0,0.00021095,4]
[365702002,1749835540602,-460.0,0.00021095,4]
[365702003,1749835540625,-460.0,0.00021095,4]
[365702004,1749835540648,-460.0,0.00021095,4]
[365702005,1749835540671,-460.0,0.00021095,4]
[365702006,1749835540693,-460.0,0.00021095,4]
[365702007,1749835540717,-460.0,0.00021095,4]
[365702008,1749835540741,-534.4,0.00021095,4]
[365702009,1749835540764,-316.32705389,0.00021095,4]
[365702010,1749835540787,-440.0,0.00021095,4]
[365702011,1749835540810,-916.08,0.00021095,4]
[365702012,1749835540836,-1298.86,0.00021095,4]
[365702013,1749835540859,-460.0,0.00021095,4]
[365702014,1749835540881,-460.0,0.00021095,4]
[365702015,1749835540905,-460.0,0.00021095,4]
[365702016,1749835540928,-460.0,0.00021095,4]
[365702017,1749835540955,-440.0,0.00021095,4]
[365702018,1749835540978,-460.0,0.00021095,4]
[365702019,1749835541001,-460.0,0.00021095,4]
[365702020,1749835541024,-460.0,0.00021095,4]
[365702021,1749835541048,-430.0,0.00021095,4]
[365702022,1749835541070,-430.0,0.00021095,4]
[365702023,1749835541092,-436.48722184,0.00021095,4]
[365702024,1749835541113,-460.0,0.00021095,4]
[365702025,1749835541137,-465.89,0.00021095,4]
[365702026,1749835541297,-460.0,0.00021095,4]
[365702027,1749835541322,-460.0,0.00021095,4]
[365702028,1749835541344,-460.0,0.00021095,4]
[365702029,1749835541366,-460.0,0.00021095,4]
[365702030,1749835541388,-526.9,0.00021095,4]
[365702031,1749835541410,-460.0,0.00021095,4]
[365702032,1749835541432,-460.0,0.00021095,4]
[365702033,1749835541454,-440.0,0.00021095,4]
[365702034,1749835541479,-460.0,0.00021095,4]
[365702035,1749835541502,-500.0,0.00021095,4]
[365702036,1749835541526,-500.0,0.00021095,4]
[365702037,1749835541550,-2449.58,0.00021095,4]
[365702038,1749835541571,-460.0,0.00021095,4]
[365702039,1749835541592,-430.0,0.00021095,4]
[365702040,1749835541614,-460.0,0.00021095,4]
[365702041,1749835541635,-718.12,0.00021359,10]
[365702042,1749835541658,-1318.0,0.00021359,10]
[365702043,1749835541679,-1098.34,0.00021359,10]
[365702044,1749835541701,-460.0,0.00021368,4]
[365702045,1749835541724,-440.0,0.00021368,4]
[365702046,1749835541747,-460.0,0.00021368,4]
[365702047,1749835541770,-438.51435917,0.00021368,4]
[365702048,1749835541794,-522.48,0.00021368,4]
[365702049,1749835541816,-430.0,0.00021368,4]
[365702050,1749835541838,-460.0,0.00021369,4]
[365702051,1749835541859,-494.60559962,0.00021369,4]
[365702052,1749835541881,-322.20250663,0.00021369,4]
[365702053,1749835541903,-460.0,0.00021369,4]
[365702054,1749835541924,-460.0,0.00021369,4]
[365702055,1749835541945,-260.0,0.00021369,4]
[365702056,1749835541971,-460.0,0.00021369,4]
[365702057,1749835541994,-460.0,0.00021369,4]
[365702058,1749835542018,-978.09,0.00021369,4]
[365702059,1749835542043,-596.92,0.00021369,4]
[365702060,1749835542066,-901.29,0.00021369,4]
[365702061,1749835542087,-460.0,0.00021369,2]
[365702062,1749835542108,-460.0,0.00021369,4]
[365702063,1749835542132,-300.0,0.00021369,4]
[365702064,1749835542155,-460.0,0.00021369,4]
[365702065,1749835542177,-1131.11,0.00021369,4]
[365702066,1749835542200,-1208.04,0.00021369,4]
[365702067,1749835542226,-460.0,0.00021369,4]
[365702068,1749835542249,-1534.12,0.00021369,4]
[365702069,1749835542271,-460.0,0.00021369,4]
[365702070,1749835542294,-629.59,0.00021369,4]
[365702071,1749835542316,-460.0,0.00021369,4]
[365702072,1749835542340,-729.7,0.00021369,4]
[365702073,1749835542362,-363.19553997,0.00021369,4]
[365702074,1749835542384,-460.0,0.00021369,4]
[365702075,1749835542407,-460.0,0.00021369,4]
[365702076,1749835542430,-982.96,0.00021369,4]
[365702077,1749835542452,-460.0,0.00021369,4]
[365702078,1749835542476,-460.0,0.00021369,4]
[365702079,1749835542498,-460.0,0.00021369,4]
[365702080,1749835542521,-460.0,0.00021369,4]
[365702081,1749835542546,-460.0,0.00021369,4]
[365702082,1749835542571,-534.4,0.00021369,4]
[365702083,1749835542598,-916.08,0.00021369,4]
[365702084,1749835542622,-380.0,0.00021369,4]
[365702085,1749835542650,-1298.86,0.00021369,4]
[365702086,1749835542674,-274.02,0.00021369,4]
[365702087,1749835542699,-460.0,0.00021369,4]
[365702088,1749835542728,-475.26,0.00021369,4]
[365702089,1749835542754,-460.0,0.00021369,4]
[365702090,1749835542780,-420.0,0.00021369,4]
[365702091,1749835542804,-465.89,0.00021369,4]
[365702092,1749835542829,-460.0,0.00021369,4]
[365702093,1749835542856,-460.0,0.00021369,4]
[365702094,1749835542879,-420.0,0.00021369,4]
[365702095,1749835542906,-420.0,0.00021369,4]
[365702096,1749835542929,-440.0,0.00021369,4]
[365702097,1749835542957,-460.0,0.00021369,4]
[365702098,1749835542985,-400.0,0.00021369,4]
[365702099,1749835543013,-2449.58,0.00021369,4]
[365702100,1749835543038,-420.0,0.00021369,4]
[365702101,1749835543062,-440.0,0.00021369,4]
[365702102,1749835543086,-500.0,0.00021479,2]
[365702103,1749835543109,-500.0,0.00021479,2]
[365702104,1749835543132,-500.0,0.00021479,2]
[365702105,1749835543156,-503.18092134,0.00021479,2]
[365702106,1749835543181,-500.0,0.00021479,2]
[365702107,1749835543204,-502.21576639,0.00021479,2]
[365702108,1749835543236,-541.34304117,0.00021479,2]
[365702109,1749835543260,-367.89843496,0.00021479,2]
[365702110,1749835543282,-500.0,0.00021479,2]
[365702111,1749835543306,-500.0,0.00021562,2]
[365702112,1749835543328,-500.0,0.00021605,2]
[365702113,1749835543350,-500.0,0.00021605,2]
[365702114,1749835543371,-500.0,0.00021605,2]
[365702115,1749835543393,-500.0,0.00021605,2]
[365702116,1749835543415,-425.5250504,0.00021605,2]
[365702117,1749835607099,-923.3918724,0.00020995,2]
[365702118,1749835607122,-300.0,0.00021094,2]
[365702119,1749835607143,-300.0,0.00021094,2]
[365702120,1749835607164,-440.0,0.00021095,4]
[365702121,1749835607187,-460.0,0.00021095,4]
[365702122,1749835607210,-957.7,0.00021095,4]
[365702123,1749835607234,-1045.34,0.00021095,4]
[365702124,1749835607256,-460.0,0.00021095,4]
[365702125,1749835607279,-430.0,0.00021095,4]
[365702126,1749835607299,-440.0,0.00021095,4]
[365702127,1749835607321,-440.0,0.00021095,4]
[365702128,1749835607343,-460.0,0.00021095,4]
[365702129,1749835607363,-440.0,0.00021095,4]
[365702130,1749835607384,-440.0,0.00021095,4]
[365702131,1749835607405,-440.0,0.00021095,4]
[365702132,1749835607428,-460.0,0.00021095,4]
[365702133,1749835607449,-420.0,0.00021095,4]
[365702134,1749835607470,-460.0,0.00021095,4]
[365702135,1749835607493,-400.0,0.00021095,4]
[365702136,1749835607515,-460.0,0.00021095,4]
[365702137,1749835607539,-440.0,0.00021095,4]
[365702138,1749835607562,-440.0,0.00021095,4]
[365702139,1749835607585,-460.0,0.00021095,4]
[365702140,1749835607608,-440.0,0.00021095,4]
[365702141,1749835607629,-403.10390958,0.00021095,4]
[365702142,1749835607650,-440.0,0.00021095,4]
[365702143,1749835607673,-400.0,0.00021095,4]
[365702144,1749835607696,-440.0,0.00021095,4]
[365702145,1749835607720,-998.57135002,0.00021095,4]
[365702146,1749835627103,-300.0,0.00021094,2]
[365702147,1749835627127,-219.51864998,0.00021095,4]
[365702148,1749835627151,-460.0,0.00021095,4]
[365702149,1749835627172,-440.0,0.00021095,4]
[365702150,1749835627194,-460.0,0.00021095,4]
[365702151,1749835627216,-574.43913248,0.00021095,4]
[365702152,1749835627372,-1102.65,0.00021095,4]
[365702153,1749835627396,-440.0,0.00021095,4]
[365702154,1749835627419,-440.0,0.00021095,4]
[365702155,1749835627443,-1572.95,0.00021095,4]
[365702156,1749835627464,-440.0,0.00021095,4]
[365702157,1749835627486,-434.74176524,0.00021095,4]
[365702158,1749835627507,-420.0,0.00021095,4]
[365702159,1749835627529,-440.0,0.00021095,4]
[365702160,1749835627554,-440.0,0.00021095,4]
[365702161,1749835627576,-440.0,0.00021095,4]
[365702162,1749835627600,-460.0,0.00021369,4]
[365702163,1749835627624,-957.7,0.00021369,4]
[365702164,1749835627648,-1045.34,0.00021369,4]
[365702165,1749835627670,-460.0,0.00021369,4]
[365702166,1749835627692,-460.0,0.00021369,4]
[365702167,1749835627715,-460.0,0.00021369,4]
[365702168,1749835627738,-460.0,0.00021369,4]
[365702169,1749835627761,-460.0,0.00021369,4]
[365702170,1749835627782,-460.0,0.00021369,4]
[365702171,1749835627807,-1218.09,0.00021369,4]
[365702172,1749835627829,-460.0,0.00021369,4]
[365702173,1749835627855,-460.0,0.00021369,4]
[365702174,1749835627880,-1102.65,0.00021369,4]
[365702175,1749835627904,-1572.95,0.00021369,4]
[365702176,1749835627926,-923.3918724,0.00021525,2]
[365702177,1749835627948,-258.47842106,0.00021624,4]
[365702178,1749835627970,-410.0,0.00021624,4]
[365702179,1749835627996,-503.23811144,0.00021625,2]
[365702180,1749835628017,-183.35058372,0.00021625,2]
[365702181,1749835628040,-500.0,0.00021625,2]
[365702182,1749835628064,-500.0,0.00021625,2]
[365702183,1749835628085,-110.43842868,0.00021625,2]
[365702184,1749835628114,-389.56157132,0.00021625,2]
[365702185,1749835628135,-503.20737064,0.00021625,2]
[365702186,1749835628158,-500.0,0.00021625,2]
[365702187,1749835628179,-539.29664791,0.00021625,2]
[365702188,1749835628200,-507.6131257,0.00021625,2]
[365702189,1749835628221,-460.0,0.00021642,4]
[365702190,1749835628243,-460.0,0.00021643,4]
[365702191,1749835628265,-460.0,0.00021643,4]
[365702192,1749835628287,-460.0,0.00021643,2]
[365702193,1749835628312,-629.59,0.00021643,4]
[365702194,1749835628335,-276.95,0.00021643,4]
[365702195,1749835628360,-729.7,0.00021643,4]
[365702196,1749835628382,-460.0,0.00021643,4]
[365702197,1749835628405,-460.0,0.00021643,4]
[365702198,1749835628430,-982.96,0.00021643,4]
[365702199,1749835628453,-460.0,0.00021643,4]
[365702200,1749835628477,-460.0,0.00021643,4]
[365702201,1749835628499,-460.0,0.00021643,4]
[365702202,1749835628520,-460.0,0.00021643,4]
[365702203,1749835628544,-534.4,0.00021643,4]
[365702204,1749835628568,-916.08,0.00021643,4]
[365702205,1749835628593,-1298.86,0.00021643,4]
[365702206,1749835628615,-460.0,0.00021643,4]
[365702207,1749835628639,-460.0,0.00021643,4]
[365702208,1749835628661,-465.89,0.00021643,4]
[365702209,1749835628684,-460.0,0.00021643,4]
[365702210,1749835628707,-460.0,0.00021643,4]
[365702211,1749835628730,-460.0,0.00021643,4]
[365702212,1749835628757,-2449.58,0.00021643,4]
[365702213,1749835628799,-460.0,0.00021643,4]
[365702214,1749835628824,-957.7,0.00021643,4]
[365702215,1749835628851,-1045.34,0.00021643,4]
[365702216,1749835628874,-460.0,0.00021643,4]
[365702217,1749835628897,-460.0,0.00021643,4]
[365702218,1749835628919,-460.0,0.00021643,4]
[365702219,1749835628941,-460.0,0.00021643,4]
[365702220,1749835628964,-460.0,0.00021643,4]
[365702221,1749835628991,-1218.09,0.00021643,4]
[365702222,1749835629014,-460.0,0.00021643,4]
[365702223,1749835629040,-460.0,0.00021643,4]
[365702224,1749835629067,-1102.65,0.00021643,4]
[365702225,1749835629091,-1572.95,0.00021643,4]
[365702226,1749835629113,-1688.0,0.00021658,2]
[365702227,1749835629134,-207.4,0.00021658,2]
[365702228,1749835629155,-287.65116742,0.0002166,2]
[365702229,1749835629176,-508.9242103,0.0002166,2]
[365702230,1749835629198,-600.78123617,0.00021713,2]
[365702231,1749835629219,-505.47568824,0.00021745,2]
[365702232,1749835629241,-500.0,0.00021804,2]
[365702233,1749835629263,-500.0,0.00021804,2]
[365702234,1749835629284,-5000.0,0.00021804,2]
[365702235,1749835629308,-500.0,0.00021804,2]
[365702236,1749835629332,-500.0,0.00021804,2]
[365702237,1749835629356,-500.0,0.00021804,2]
[365702238,1749835629378,-500.0,0.00021804,2]
[365702239,1749835629401,-500.0,0.00021804,2]
[365702240,1749835629424,-500.0,0.00021804,2]
[365702241,1749835629447,-500.0,0.00021804,2]
[365702242,1749835629468,-500.0,0.00021804,2]
[365702243,1749835629491,-500.0,0.00021804,2]
[365702244,1749835629514,-500.0,0.00021804,2]
[365702245,1749835629536,-500.0,0.00021804,2]
[365702246,1749835629561,-500.0,0.00021804,2]
[365702247,1749835629584,-500.0,0.00021804,2]
[365702248,1749835629605,-500.0,0.00021825,2]
[365702249,1749835629627,-507.97057501,0.0002183,2]
[365702250,1749835629648,-365.77093859,0.000219,2]
[365702251,1749835629677,-207.95099101,0.000219,6]
[365702252,1749835629698,-915.28,0.00021907,10]
[365702253,1749835629719,-460.0,0.00021917,4]
[365702254,1749835629741,-460.0,0.00021917,4]
[365702255,1749835629763,-460.0,0.00021917,2]
[365702256,1749835629788,-629.59,0.00021917,4]
[365702257,1749835629812,-729.7,0.00021917,4]
[365702258,1749835629836,-460.0,0.00021917,4]
[365702259,1749835629860,-460.0,0.00021917,4]
[365702260,1749835629885,-982.96,0.00021917,4]
[365702261,1749835629909,-460.0,0.00021917,4]
[365702262,1749835629934,-460.0,0.00021917,4]
[365702263,1749835629956,-460.0,0.00021917,4]
[365702264,1749835629979,-460.0,0.00021917,4]
[365702265,1749835630005,-534.4,0.00021917,4]
[365702266,1749835630028,-916.08,0.00021917,4]
[365702267,1749835630055,-1298.86,0.00021917,4]
[365702268,1749835630078,-460.0,0.00021917,4]
[365702269,1749835630100,-460.0,0.00021917,4]
[365702270,1749835630122,-465.89,0.00021917,4]
[365702271,1749835630145,-460.0,0.00021917,4]
[365702272,1749835630167,-460.0,0.00021917,4]
[365702273,1749835630191,-2449.58,0.00021917,4]
[365702274,1749835630312,-460.0,0.00021917,4]
[365702275,1749835630337,-957.7,0.00021917,4]
[365702276,1749835630361,-1045.34,0.00021917,4]
[365702277,1749835630384,-460.0,0.00021917,4]
[365702278,1749835630408,-460.0,0.00021917,4]
[365702279,1749835630430,-460.0,0.00021917,4]
[365702280,1749835630453,-318.3678971,0.00021917,4]
[365702281,1749835630478,-1218.09,0.00021917,4]
[365702282,1749835630500,-460.0,0.00021917,4]
[365702283,1749835630524,-460.0,0.00021917,4]
[365702284,1749835630550,-1102.65,0.00021917,4]
[365702285,1749835630573,-1572.95,0.00021917,4]
[365702286,1749835630594,-160.0,0.00021954,3]
[365702287,1749835630614,-500.0,0.0002196,2]
[365702288,1749835630635,-171.0,0.00022,2]
[365702289,1749835630665,-207.95099095,0.0002205,6]
[365702290,1749835630686,-500.0,0.00022058,2]
[365702291,1749835630708,-500.0,0.00022062,2]
[365702292,1749835630729,-501.46874494,0.00022062,2]
[365702293,1749835630750,-500.0,0.00022062,2]
[365702294,1749835630771,-160.07782674,0.00022062,2]
[365702295,1749835630792,-500.0,0.00022062,2]
[365702296,1749835630816,-500.0,0.00022106,2]
[365702297,1749835630837,-500.0,0.00022106,2]
[365702298,1749835630859,-153.0,0.00022112,2]
[365702299,1749835630881,-153.0,0.00022112,2]
[365702300,1749835630903,-153.0,0.00022112,2]
[365702301,1749835630924,-153.0,0.00022112,2]
[365702302,1749835630946,-153.0,0.00022112,2]
[365702303,1749835630968,-153.0,0.00022114,2]
[365702304,1749835630993,-153.0,0.00022114,2]
[365702305,1749835631014,-153.0,0.00022114,2]
[365702306,1749835631037,-153.0,0.00022115,2]
[365702307,1749835631059,-153.0,0.00022117,2]
[365702308,1749835631080,-153.0,0.00022117,2]
[365702309,1749835631101,-153.0,0.00022117,2]
[365702310,1749835631123,-153.0,0.00022117,2]
[365702311,1749835631144,-153.0,0.00022117,2]
[365702312,1749835631165,-153.0,0.0002212,2]
[365702313,1749835631186,-153.0,0.0002212,2]
[365702314,1749835631207,-153.0,0.0002212,2]
[365702315,1749835631228,-153.0,0.0002212,2]
[365702316,1749835631250,-844.94977992,0.00022153,2]
[365702317,1749835631270,-160.0,0.00022153,2]
[365702318,1749835631292,-160.0,0.00022153,2]
[365702319,1749835631314,-229.78555783,0.00022153,2]
[365702320,1749835631336,-160.0,0.00022153,2]
[365702321,1749835631358,-762.73,0.00022171,10]
[365702322,1749835631379,-500.0,0.0002219,2]